fUSD/lending_fUSD_20251001
["ID","MTS","AMOUNT","RATE_DAILY","PERIOD"]
[388655629,1759303841657,-113.4416503,0.00017871,2]
[388655630,1759303841667,-151.0,0.00017871,2]
[388655631,1759303841677,-151.0,0.00017871,2]
[388655632,1759303841687,-151.0,0.00017871,2]
[388655633,1759303841697,-151.0,0.00017871,2]
[388655634,1759303841707,-151.0,0.00017871,2]
[388655635,1759303841717,-151.0,0.00017871,2]
[388655636,1759303841727,-151.0,0.00017871,2]
[388655637,1759303841737,-126.76705816,0.00017871,2]
[388655638,1759303841792,-24.23294184,0.00017871,2]
[388655639,1759303841808,-151.0,0.00017871,2]
[388655640,1759303841818,-151.0,0.00017871,2]
[388655641,1759303841829,-151.0,0.00017871,2]
[388655642,1759303841840,-151.0,0.00017871,2]
[388655643,1759303841852,-151.0,0.00017871,2]
[388655644,1759303841862,-151.0,0.00017871,2]
[388655645,1759303841871,-151.0,0.00017871,2]
[388655646,1759303841884,-152.554788,0.00017871,2]
[388655647,1759303841894,-151.0,0.00017871,2]
[388655648,1759303841904,-150.37,0.00017871,2]
[388655649,1759303841914,-197.0,0.00017871,2]
[388655650,1759303841924,-151.0,0.00017871,2]
[388655651,1759303841934,-151.0,0.00017871,2]
[388655652,1759303841944,-151.0,0.00017871,2]
[388655653,1759303841954,-151.0,0.00017871,2]
[388655654,1759303841964,-151.0,0.00017871,2]
[388655655,1759303841974,-151.0,0.00017871,2]
[388655656,1759303841984,-245.0,0.00017871,2]
[388655657,1759303841994,-2316.25,0.00017871,2]
[388655658,1759303842004,-151.0,0.00017871,2]
[388655659,1759303842014,-151.0,0.00017871,2]
[388655660,1759303842023,-151.0,0.00017871,2]
[388655661,1759303842033,-341.828452,0.00017871,2]
[388655662,1759303842042,-312.9527,0.00017871,2]
[388655663,1759303842052,-312.9527,0.00017871,2]
[388655664,1759303842065,-341.828452,0.00017871,2]
[388655665,1759303842074,-189.65679481,0.00017871,2]
[388655666,1759303842114,-123.29590519,0.00017871,2]
[388655667,1759303842124,-341.828452,0.00017871,2]
[388655668,1759303842135,-312.9527,0.00017871,2]
[388655669,1759303842144,-151.0,0.00017871,2]
[388655670,1759303842155,-151.0,0.00017871,2]
[388655671,1759303842165,-151.0,0.00017871,2]
[388655672,1759303842176,-341.828452,0.00017871,2]
[388655673,1759303842190,-151.0,0.00017871,2]
[388655674,1759303842200,-151.0,0.00017871,2]
[388655675,1759303842212,-151.0,0.00017871,2]
[388655676,1759303842222,-151.0,0.00017871,2]
[388655677,1759303842231,-201.513878,0.00017871,2]
[388655678,1759303842241,-151.0,0.00017871,2]
[388655679,1759303842250,-151.0,0.00017871,2]
[388655680,1759303842260,-152.326151,0.00017871,2]
[388655681,1759303842270,-151.0,0.00017871,2]
[388655682,1759303842279,-151.0,0.00017871,2]
[388655683,1759303842289,-151.0,0.00017871,2]
[388655684,1759303842299,-151.0,0.00017871,2]
[388655685,1759303842310,-151.0,0.00017871,2]
[388655686,1759303842319,-151.0,0.00017871,2]
[388655687,1759303842329,-151.0,0.00017871,2]
[388655688,1759303842339,-151.0,0.00017871,2]
[388655689,1759303842350,-151.0,0.00017871,2]
[388655690,1759303842359,-37.06942042,0.00017871,2]
[388655691,1759303842372,-113.93057958,0.00017871,2]
[388655692,1759303842382,-151.0,0.00017871,2]
[388655693,1759303842392,-175.04512,0.00017871,2]
[388655694,1759303842401,-151.0,0.00017871,2]
[388655695,1759303842414,-151.0,0.00017871,2]
[388655696,1759303842424,-151.0,0.00017871,2]
[388655697,1759303842433,-151.0,0.00017871,2]
[388655698,1759303842443,-151.0,0.00017871,2]
[388655699,1759303842453,-151.0,0.00017871,2]
[388655700,1759303842463,-151.0,0.00017871,2]
[388655701,1759303842472,-151.0,0.00017871,2]
[388655702,1759303842483,-31.71430042,0.00017871,2]
[388655703,1759303842529,-119.28569958,0.00017871,2]
[388655704,1759303842540,-152.356674,0.00017871,2]
[388655705,1759303842550,-151.0,0.00017871,2]
[388655706,1759303842560,-151.0,0.00017871,2]
[388655707,1759303842570,-153.169809,0.00017871,2]
[388655708,1759303842580,-151.0,0.00017871,2]
[388655709,1759303842589,-151.0,0.00017871,2]
[388655710,1759303842599,-151.0,0.00017871,2]
[388655711,1759303842608,-151.0,0.00017871,2]
[388655712,1759303842618,-52.99562527,0.00017871,2]
[388655713,1759303842630,-98.00437473,0.00017871,2]
[388655714,1759303842641,-151.0,0.00017871,2]
[388655715,1759303842651,-58.63224671,0.00017871,2]
[388655716,1759303843687,-3625.5786,0.00017765,2]
[388655717,1759303843697,-92.36775329,0.00017871,2]
[388655718,1759303843707,-151.0,0.00017871,2]
[388655719,1759303843717,-151.0,0.00017871,2]
[388655720,1759303843727,-151.0,0.00017871,2]
[388655721,1759303843737,-151.0,0.00017871,2]
[388655722,1759303843747,-151.0,0.00017871,2]
[388655723,1759303843757,-254.815088,0.00017871,2]
[388655724,1759303843767,-151.0,0.00017871,2]
[388655725,1759303843781,-151.0,0.00017871,2]
[388655726,1759303843792,-24.86666067,0.00017871,2]
[388655727,1759303843913,-126.13333933,0.00017871,2]
[388655728,1759303843924,-151.0,0.00017871,2]
[388655729,1759303843934,-151.0,0.00017871,2]
[388655730,1759303843947,-101.26083387,0.00017871,2]
[388655731,1759303843966,-49.73916613,0.00017871,2]
[388655732,1759303843976,-151.0,0.00017871,2]
[388655733,1759303843986,-151.0,0.00017871,2]
[388655734,1759303843996,-151.0,0.00017871,2]
[388655735,1759303844010,-151.0,0.00017871,2]
[388655736,1759303844020,-151.0,0.00017871,2]
[388655737,1759303844030,-151.0,0.00017871,2]
[388655738,1759303844040,-151.0,0.00017871,2]
[388655739,1759303844051,-1352.491543,0.00017871,2]
[388655740,1759303844062,-1352.491543,0.00017871,2]
[388655741,1759303844072,-1352.491543,0.00017871,2]
[388655742,1759303844082,-1352.491543,0.00017871,2]
[388655743,1759303844092,-1352.491543,0.00017871,2]
[388655744,1759303844103,-1352.491543,0.00017871,2]
[388655745,1759303844114,-235.325192,0.00017871,2]
[388655746,1759303844124,-235.325192,0.00017871,2]
[388655747,1759303844133,-1352.491543,0.00017871,2]
[388655748,1759303844143,-170.165886,0.00017871,2]
[388655749,1759303844152,-1352.491543,0.00017871,2]
[388655750,1759303844162,-170.165886,0.00017871,2]
[388655751,1759303844171,-151.0,0.00017871,2]
[388655752,1759303844181,-235.325192,0.00017871,2]
[388655753,1759303844190,-167.060919,0.00017871,2]
[388655754,1759303844200,-235.325192,0.00017871,2]
[388655755,1759303844212,-151.0,0.00017871,2]
[388655756,1759303844222,-170.165886,0.00017871,2]
[388655757,1759303844232,-151.0,0.00017871,2]
[388655758,1759303844245,-170.165886,0.00017871,2]
[388655759,1759303844255,-235.325192,0.00017871,2]
[388655760,1759303844265,-235.325192,0.00017871,2]
[388655761,1759303844275,-241.546203,0.00017871,2]
[388655762,1759303844284,-151.0,0.00017871,2]
[388655763,1759303844294,-170.165886,0.00017871,2]
[388655764,1759303844304,-151.0,0.00017871,2]
[388655765,1759303844315,-170.165886,0.00017871,2]
[388655766,1759303844326,-235.325192,0.00017871,2]
[388655767,1759303844336,-235.325192,0.00017871,2]
[388655768,1759303844346,-170.165886,0.00017871,2]
[388655769,1759303844355,-104.0545591,0.00017871,2]
[388655770,1759303844368,-66.1113269,0.00017871,2]
[388655771,1759303844377,-215.056684,0.00017871,2]
[388655772,1759303844386,-17.6095992,0.00017871,2]
[388655773,1759303844398,-133.3904008,0.00017871,2]
[388655774,1759303844408,-151.144366,0.00017871,2]
[388655775,1759303844418,-163.916297,0.00017871,2]
[388655776,1759303844427,-151.144366,0.00017871,2]
[388655777,1759303844437,-151.144366,0.00017871,2]
[388655778,1759303844446,-151.144366,0.00017871,2]
[388655779,1759303844456,-151.0,0.00017871,2]
[388655780,1759303844466,-151.144366,0.00017871,2]
[388655781,1759303844477,-151.144366,0.00017871,2]
[388655782,1759303844486,-151.144366,0.00017871,2]
[388655783,1759303844496,-151.144366,0.00017871,2]
[388655784,1759303844506,-763.571581,0.00017871,2]
[388655785,1759303844515,-763.571581,0.00017871,2]
[388655786,1759303844524,-151.0,0.00017871,2]
[388655787,1759303844534,-151.0,0.00017871,2]
[388655788,1759303844544,-763.571581,0.00017871,2]
[388655789,1759303844554,-763.571581,0.00017871,2]
[388655790,1759303844563,-151.0,0.00017871,2]
[388655791,1759303844573,-151.0,0.00017871,2]
[388655792,1759303844583,-763.571581,0.00017871,2]
[388655793,1759303844592,-763.571581,0.00017871,2]
[388655794,1759303844602,-151.0,0.00017871,2]
[388655795,1759303844612,-177.977663,0.00017871,2]
[388655796,1759303844622,-500.0,0.00017871,2]
[388655797,1759303844632,-500.0,0.00017871,2]
[388655798,1759303844642,-500.0,0.00017871,2]
[388655799,1759303844652,-151.0,0.00017871,2]
[388655800,1759303844661,-763.571581,0.00017871,2]
[388655801,1759303844671,-763.571581,0.00017871,2]
[388655802,1759303845144,-150.0,0.00017871,2]
[388655803,1759303845154,-500.0,0.00017871,2]
[388655804,1759303845164,-151.0,0.00017871,2]
[388655805,1759303845172,-151.0,0.00017871,2]
[388655806,1759303845182,-167.756919,0.00017871,2]
[388655807,1759303845192,-217.605356,0.00017871,2]
[388655808,1759303845203,-150.0,0.00017871,2]
[388655809,1759303845216,-150.0,0.00017871,2]
[388655810,1759303845230,-151.0,0.00017871,2]
[388655811,1759303845240,-151.0,0.00017871,2]
[388655812,1759303845249,-151.0,0.00017871,2]
[388655813,1759303845260,-206.78289084,0.00017871,2]
[388655814,1759303845270,-151.0,0.00017871,2]
[388655815,1759303845279,-151.0,0.00017871,2]
[388655816,1759303845290,-151.0,0.00017871,2]
[388655817,1759303845300,-150.0,0.00017871,2]
[388655818,1759303845310,-151.0,0.00017871,2]
[388655819,1759303845319,-209.772194,0.00017871,2]
[388655820,1759303845329,-151.0,0.00017871,2]
[388655821,1759303845338,-151.0,0.00017871,2]
[388655822,1759303845347,-151.0,0.00017871,2]
[388655823,1759303845356,-151.0,0.00017871,2]
[388655824,1759303845366,-500.0,0.00017871,2]
[388655825,1759303845375,-151.0,0.00017871,2]
[388655826,1759303845384,-171.832739,0.00017871,2]
[388655827,1759303845393,-151.0,0.00017871,2]
[388655828,1759303845402,-151.0,0.00017871,2]
[388655829,1759303845411,-151.0,0.00017871,2]
[388655830,1759303845420,-151.0,0.00017871,2]
[388655831,1759303845430,-151.0,0.00017871,2]
[388655832,1759303845439,-151.0,0.00017871,2]
[388655833,1759303845449,-151.0,0.00017871,2]
[388655834,1759303845458,-151.0,0.00017871,2]
[388655835,1759303845467,-151.0,0.00017871,2]
[388655836,1759303845477,-151.0,0.00017871,2]
[388655837,1759303845486,-187.146935,0.00017871,2]
[388655838,1759303845496,-187.146935,0.00017871,2]
[388655839,1759303845506,-151.0,0.00017871,2]
[388655840,1759303845516,-151.0,0.00017871,2]
[388655841,1759303845526,-187.146935,0.00017871,2]
[388655842,1759303845538,-187.146935,0.00017871,2]
[388655843,1759303845550,-151.0,0.00017871,2]
[388655844,1759303845560,-288.166892,0.00017871,2]
[388655845,1759303845569,-152.315449,0.00017871,2]
[388655846,1759303845579,-151.0,0.00017871,2]
[388655847,1759303845588,-187.146935,0.00017871,2]
[388655848,1759303845598,-187.146935,0.00017871,2]
[388655849,1759303845608,-187.146935,0.00017871,2]
[388655850,1759303845617,-187.146935,0.00017871,2]
[388655851,1759303845626,-152.733069,0.00017871,2]
[388655852,1759303845635,-151.0,0.00017871,2]
[388655853,1759303845645,-151.0,0.00017871,2]
[388655856,1759303845655,-151.0,0.00017871,2]
[388655859,1759303845665,-368.279662,0.00017871,2]
[388655862,1759303845676,-368.279662,0.00017871,2]
[388655864,1759303845686,-368.279662,0.00017871,2]
[388655865,1759303845696,-368.279662,0.00017871,2]
[388655866,1759303845705,-166.246748,0.00017871,2]
[388655868,1759303845715,-368.279662,0.00017871,2]
[388655870,1759303845725,-368.279662,0.00017871,2]
[388655871,1759303845735,-368.279662,0.00017871,2]
[388655872,1759303845744,-368.279662,0.00017871,2]
[388655874,1759303845754,-151.074855,0.00017871,2]
[388655875,1759303845763,-151.074855,0.00017871,2]
[388655876,1759303845773,-151.0,0.00017871,2]
[388655878,1759303845782,-151.0,0.00017871,2]
[388655880,1759303845792,-151.0,0.00017871,2]
[388655882,1759303845807,-151.074855,0.00017871,2]
[388655884,1759303845816,-151.0,0.00017871,2]
[388655886,1759303845826,-151.074855,0.00017871,2]
[388655888,1759303845836,-151.0,0.00017871,2]
[388655892,1759303845851,-151.0,0.00017871,2]
[388655895,1759303845862,-151.0,0.00017871,2]
[388655898,1759303845873,-151.074855,0.00017871,2]
[388655900,1759303845883,-151.074855,0.00017871,2]
[388655902,1759303845893,-151.0,0.00017871,2]
[388655905,1759303845903,-151.0,0.00017871,2]
[388655908,1759303845913,-151.074855,0.00017871,2]
[388655911,1759303845922,-292.73,0.0001794,2]
[388655914,1759303845931,-292.73,0.0001794,2]
[388655917,1759303845942,-40848.02814809,0.0001795,2]
[388655928,1759303845992,-25186.3396482,0.0001795,2]
[388655930,1759303846004,-1770.23677127,0.0001795,2]
[388655932,1759303846016,-845.04739991,0.0001795,2]
[388655934,1759303846027,-858.23384498,0.0001795,2]
[388655935,1759303846236,-151.074855,0.00017871,2]
[388655936,1759303846247,-1077.63510005,0.0001795,2]
[388655937,1759303846258,-1086.05742157,0.0001795,2]
[388655938,1759303846270,-5203.57326618,0.0001795,2]
[388655939,1759303846282,-4960.73331159,0.0001795,2]
[388655940,1759303846293,-1129.92604561,0.0001795,2]
[388655941,1759303846305,-615.79176526,0.0001795,2]
[388655943,1759303847212,-383.27775,0.00017871,2]
[388655944,1759303847222,-151.0,0.00017871,2]
[388655945,1759303847232,-383.27775,0.00017871,2]
[388655946,1759303847241,-151.0,0.00017871,2]
[388655947,1759303847251,-151.0,0.00017871,2]
[388655948,1759303847261,-151.0,0.00017871,2]
[388655949,1759303847271,-3840.46474927,0.0001795,2]
[388655950,1759303847294,-1151.4223584,0.0001795,2]
[388655951,1759303847307,-1890.36253508,0.0001795,2]
[388655952,1759303847317,-151.0,0.0001795,2]
[388655953,1759303847326,-151.0,0.0001795,2]
[388655954,1759303847336,-151.0,0.0001795,2]
[388655955,1759303847345,-151.0,0.0001795,2]
[388655956,1759303847354,-151.0,0.0001795,2]
[388655957,1759303847363,-151.0,0.0001795,2]
[388655958,1759303847372,-151.0,0.0001795,2]
[388655959,1759303847381,-151.0,0.0001795,2]
[388655960,1759303847391,-1114.8341813,0.0001795,2]
[388655961,1759303847402,-237.6573617,0.0001795,2]
[388655962,1759303847412,-1352.491543,0.0001795,2]
[388655963,1759303847422,-1352.491543,0.0001795,2]
[388655964,1759303847432,-235.325192,0.0001795,2]
[388655965,1759303847442,-1352.491543,0.0001795,2]
[388655966,1759303847452,-66.40470858,0.0001795,2]
[388655967,1759303860346,2455.0,0.0003013,120]
[388655968,1759303872962,-174.4609154,0.00016736,2]
[388655971,1759304085497,362.88,8.622e-05,2]
[388655972,1759304085728,362.88,9.076e-05,2]
[388655973,1759304085936,362.88,9.53e-05,2]
[388655974,1759304086142,362.88,9.984e-05,2]
[388655975,1759304086347,362.88,0.00010438,2]
[388655976,1759304086565,362.88,0.00010891,2]
[388655977,1759304086795,362.88,0.00011345,2]
[388655978,1759304087972,362.88,0.00011799,2]
[388655979,1759304088143,362.88,0.00012253,2]
[388655980,1759304088324,362.88,0.00012707,2]
[388655981,1759304088408,362.88,0.0001316,2]
[388655982,1759304088497,362.88,0.00013614,2]
[388655983,1759304088571,362.88,0.00014068,2]
[388655984,1759304088642,207.83229616,0.00014522,2]
[388655985,1759304088667,155.04770384,0.00014522,2]
[388655986,1759304088839,362.88,0.00014976,2]
[388655987,1759304088993,362.88,0.0001543,2]
[388655988,1759304089239,362.88,0.00015883,2]
[388655989,1759304089481,362.88,0.00016337,2]
[388655990,1759304344884,-325.5390846,0.00016736,2]
[388655991,1759304344910,-1170.49,0.0001679,2]
[388655993,1759304557773,150.0,0.00016603,2]
[388655994,1759304752821,-452.53,0.00021945,30]
[388655995,1759304780669,-250.0,0.00016749,2]
[388655996,1759304780697,-362.88,0.00016791,2]
[388655997,1759304780722,-620.98,0.00017022,2]
[388655998,1759304780748,-172.1,0.00017053,2]
[388655999,1759304780773,-1000.0,0.00017057,2]
[388656000,1759304780796,-2752.52,0.00017072,2]
[388656001,1759304780820,-666.0,0.00017086,3]
[388656003,1759304804306,-1359.851131,0.00016665,2]
[388656005,1759304844399,-150.0,0.00017146,2]
[388656006,1759304844432,-3.72,0.00017147,2]
[388656007,1759304846576,-185.21222327,0.00017147,2]
[388656008,1759304873488,-20.68777673,0.00017147,2]
[388656009,1759304873515,-187.56513128,0.00017153,2]
[388656011,1759304926159,414.81,0.00021945,30]
[388656012,1759304967325,182.46,8.519e-05,2]
[388656013,1759304967407,182.46,0.00012778,2]
[388656014,1759304979988,289.14793703,0.00030137,120]
[388656015,1759304998399,4376.62340993,0.0003013,120]
[388656093,1759305033027,-435.03631884,0.00017,2]
[388656094,1759305033037,-182.46,0.00017038,2]
[388656095,1759305033046,-639.0,0.00017153,2]
[388656096,1759305033055,-3.99368116,0.00017153,2]
[388656097,1759305033066,-296.00631884,0.00017153,2]
[388656098,1759305033075,-311.43344687,0.00017153,2]
[388656099,1759305033087,-596.60464793,0.00017153,2]
[388656100,1759305033098,-291.9619052,0.00017153,2]
[388656101,1759305033107,-300.0,0.00017153,2]
[388656102,1759305033116,-1503.68425481,0.00017154,2]
[388656103,1759305033127,-5142.08574519,0.00017154,2]
[388656104,1759305033136,-362.88,0.00017245,2]
[388656105,1759305033145,-1303.36600713,0.00017361,2]
[388656106,1759305033214,-17.66347559,0.00017361,2]
[388656107,1759305033223,-1321.02948272,0.00017375,2]
[388656108,1759305033233,-1321.02948272,0.00017473,2]
[388656109,1759305033243,-1321.02948272,0.00017474,2]
[388656110,1759305033252,-1321.02948272,0.00017478,2]
[388656111,1759305033262,-657.58209849,0.00017591,2]
[388656112,1759305033271,-6036.52486645,0.00017647,2]
[388656113,1759305033281,-171.58,0.00017653,2]
[388656114,1759305033291,-887.77907655,0.00017674,2]
[388656115,1759305033299,-1000.0,0.00017767,2]
[388656116,1759305033308,-731.31671,0.0001777,2]
[388656117,1759305033323,-1680.0,0.000178,2]
[388656118,1759305033332,-3781.59121602,0.00017872,2]
[388656119,1759305033344,-708.17011918,0.00017872,2]
[388656124,1759305038048,-6472.15592845,0.00017872,2]
[388656125,1759305038058,-731.31672,0.0001789,2]
[388656126,1759305038068,-9031.7873594,0.00017898,2]
[388656127,1759305038078,-172.1,0.00017905,2]
[388656128,1759305038088,-3227.772553,0.00017929,2]
[388656129,1759305038098,-300.0,0.00017943,2]
[388656130,1759305038108,-500.0,0.00017944,2]
[388656131,1759305038117,-500.0,0.00017944,2]
[388656132,1759305038127,-500.0,0.00017944,2]
[388656133,1759305038137,-500.0,0.00017944,2]
[388656134,1759305038147,-500.0,0.00017944,2]
[388656135,1759305038156,-500.0,0.00017944,2]
[388656136,1759305038166,-450.0,0.00017944,2]
[388656137,1759305038176,-500.0,0.00017944,2]
[388656138,1759305038186,-500.0,0.00017944,2]
[388656139,1759305038195,-500.0,0.00017944,2]
[388656140,1759305038205,-500.0,0.00017944,2]
[388656141,1759305038216,-500.0,0.00017944,2]
[388656142,1759305038225,-500.0,0.00017944,2]
[388656143,1759305038235,-500.0,0.00017944,2]
[388656144,1759305038245,-500.0,0.00017944,2]
[388656145,1759305038254,-214.80732846,0.00017944,2]
[388656146,1759305038263,-500.0,0.00017944,2]
[388656147,1759305038273,-500.0,0.00017944,2]
[388656148,1759305038282,-500.0,0.00017944,2]
[388656149,1759305038293,-500.0,0.00017944,2]
[388656150,1759305038302,-499.99999999,0.00017944,2]
[388656151,1759305038312,-500.0,0.00017944,2]
[388656152,1759305038322,-500.0,0.00017944,2]
[388656153,1759305038331,-427.29795102,0.00017944,2]
[388656154,1759305038340,-59452.66799871,0.00017945,2]
[388656155,1759305038352,-15512.35878916,0.00017945,2]
[388656170,1759305040143,-473.74253215,0.00017945,2]
[388656171,1759305040154,-1059.06280118,0.00017945,2]
[388656172,1759305040244,-500.65045987,0.00017945,2]
[388656173,1759305040329,-315.42575679,0.00017945,2]
[388656217,1759305046172,-918.0,0.00017945,2]
[388656219,1759305046247,-714.27294926,0.00017945,2]
[388656220,1759305046259,-2565.36660078,0.00017945,2]
[388656221,1759305046269,-155.876,0.00017949,2]
[388656222,1759305046278,-1000.0,0.0001795,2]
[388656223,1759305046287,-208.58517471,0.0001795,2]
[388656224,1759305046300,-791.41482529,0.0001795,2]
[388656225,1759305046310,-1000.0,0.0001795,2]
[388656226,1759305046319,-1000.0,0.0001795,2]
[388656227,1759305046328,-1000.0,0.0001795,2]
[388656228,1759305046337,-1000.0,0.0001795,2]
[388656229,1759305046347,-1000.0,0.0001795,2]
[388656230,1759305046356,-1000.0,0.0001795,2]
[388656231,1759305046365,-1000.0,0.0001795,2]
[388656232,1759305046374,-1000.0,0.0001795,2]
[388656233,1759305046383,-1000.0,0.0001795,2]
[388656234,1759305046392,-1000.0,0.0001795,2]
[388656235,1759305046404,-1000.0,0.0001795,2]
[388656236,1759305046415,-1000.0,0.0001795,2]
[388656237,1759305046424,-1000.0,0.0001795,2]
[388656238,1759305046433,-1000.0,0.0001795,2]
[388656239,1759305046442,-1000.0,0.0001795,2]
[388656240,1759305046452,-1000.0,0.0001795,2]
[388656241,1759305046462,-347.46142216,0.0001795,2]
[388656242,1759305046471,-2313.77,0.0001795,2]
[388656243,1759305046482,-150.0,0.0001795,2]
[388656244,1759305046491,-150.90145176,0.0001795,2]
[388656245,1759305046501,-152.76195415,0.0001795,2]
[388656246,1759305046510,-152.29201644,0.0001795,2]
[388656247,1759305046519,-500.0,0.0001795,2]
[388656248,1759305046528,-150.0,0.0001795,2]
[388656249,1759305046537,-500.0,0.0001795,2]
[388656250,1759305046546,-150.0,0.0001795,2]
[388656251,1759305046555,-500.0,0.0001795,2]
[388656252,1759305046565,-150.0,0.0001795,2]
[388656253,1759305046574,-154.59307422,0.0001795,2]
[388656254,1759305046584,-150.0,0.0001795,2]
[388656255,1759305046595,-153.83657345,0.0001795,2]
[388656256,1759305046603,-500.0,0.0001795,2]
[388656257,1759305046614,-201.96276358,0.0001795,2]
[388656258,1759305046623,-150.0,0.0001795,2]
[388656259,1759305046632,-150.0,0.0001795,2]
[388656260,1759305046643,-150.0,0.0001795,2]
[388656261,1759305046654,-1373.28500048,0.00017954,2]
[388656262,1759305046663,-6684.55086437,0.00017972,2]
[388656263,1759305046672,-151.0,0.00017972,2]
[388656264,1759305046681,-200.0,0.00017972,2]
[388656265,1759305046690,-500.0,0.00017972,2]
[388656266,1759305046699,-500.0,0.00017972,2]
[388656267,1759305046708,-200.0,0.00017972,2]
[388656268,1759305046718,-500.0,0.00017972,2]
[388656269,1759305046729,-244.23799388,0.00017972,2]
[388656270,1759305046739,-599.60298507,0.00017972,2]
[388656271,1759305046751,-500.0,0.00017972,2]
[388656272,1759305046760,-1388.35216123,0.00017972,2]
[388656273,1759305046771,-7494.33635357,0.00017972,2]
[388656274,1759305046781,-500.0,0.00017972,2]
[388656275,1759305046790,-500.0,0.00017972,2]
[388656276,1759305046799,-301.13088515,0.00017972,2]
[388656277,1759305046808,-500.0,0.00017972,2]
[388656278,1759305046817,-500.0,0.00017972,2]
[388656279,1759305046826,-500.0,0.00017972,2]
[388656280,1759305046836,-160.0,0.00017972,2]
[388656281,1759305046845,-500.0,0.00017972,2]
[388656282,1759305046854,-500.0,0.00017972,2]
[388656283,1759305046863,-546.49628724,0.00017972,2]
[388656284,1759305046872,-500.0,0.00017972,2]
[388656285,1759305046882,-500.0,0.00017972,2]
[388656286,1759305046892,-500.0,0.00017972,2]
[388656287,1759305046904,-500.0,0.00017972,2]
[388656288,1759305046914,-500.0,0.00017972,2]
[388656289,1759305046923,-500.0,0.00017972,2]
[388656290,1759305046932,-151.238888,0.00017972,2]
[388656291,1759305046941,-500.0,0.00017972,2]
[388656292,1759305046950,-500.0,0.00017972,2]
[388656293,1759305046959,-257.91778498,0.00017972,2]
[388656294,1759305046968,-500.0,0.00017972,2]
[388656295,1759305046978,-500.0,0.00017972,2]
[388656296,1759305046987,-500.0,0.00017972,2]
[388656297,1759305046996,-500.0,0.00017972,2]
[388656298,1759305047005,-500.0,0.00017972,2]
[388656299,1759305047014,-500.0,0.00017972,2]
[388656300,1759305047023,-500.0,0.00017972,2]
[388656301,1759305047032,-500.0,0.00017972,2]
[388656302,1759305047041,-500.0,0.00017972,2]
[388656303,1759305047050,-500.0,0.00017972,2]
[388656304,1759305047059,-500.0,0.00017972,2]
[388656305,1759305047069,-500.0,0.00017972,2]
[388656306,1759305047078,-500.0,0.00017972,2]
[388656307,1759305047087,-500.0,0.00017972,2]
[388656308,1759305047096,-500.0,0.00017972,2]
[388656309,1759305047105,-150.0,0.00018011,2]
[388656310,1759305047114,-370.1871378,0.00018027,2]
[388656311,1759305047123,-150.0,0.00018089,7]
[388656312,1759305047132,-1754.75651076,0.000181,2]
[388656313,1759305047141,-731.31672,0.0001814,2]
[388656314,1759305047150,-338.90841591,0.00018151,2]
[388656315,1759305047160,-150.0,0.00018224,2]
[388656316,1759305047169,-500.0,0.00018224,2]
[388656317,1759305047179,-150.0,0.00018224,2]
[388656318,1759305047188,-500.0,0.00018224,2]
[388656319,1759305047197,-150.0,0.00018224,2]
[388656320,1759305047207,-500.0,0.00018224,2]
[388656321,1759305047216,-150.0,0.00018224,2]
[388656322,1759305047225,-150.0,0.00018224,2]